Cogmind - Beta 17 @@@ ROGUE MODE // 2026.07.04 @ 11:54:30 Player: Minty Result: Destroyed self with Mini Grenade Launcher Performance ------------- Evolutions (0) 0 Regions Visited (3) 600 Robots Destroyed (29) 145 Value Destroyed (737) 737 Prototype IDs (0) 0 Alien Tech Used (0) 0 Bonus (-59) -59 TOTAL SCORE: 1423 Bonus ------- Friendly Fire -59 Cogmind --------- Core Integrity 0/250 Matter 210/300 Energy 100/100 System Corruption 0% Temperature Cool (0) Movement Core (200) Ox3 Location -10/Subcaves Parts ------- > --- POWER (1) -------- (None) > --- PROPULSION (2) --- (None) > --- UTILITY (2) ------ Improved Heat Sink Medium Storage Unit > --- WEAPON (2) ------- Mini Grenade Launcher > --- INVENTORY (10) --- Improved Targeting Computer Improved Targeting Computer Improved Targeting Computer Hardened Light Armor Plating Hardened Light Armor Plating Hardened Light Armor Plating Makeshift Laser Mini Grenade Launcher Flamer Peak State ------------ > --- POWER ------------ Light Ion Engine > --- PROPULSION ------- Light Treads Light Treads > --- UTILITY ---------- Heat Sink Medium Storage Unit > --- WEAPON ----------- Makeshift Shrapnel Gun Mini Grenade Launcher > --- INVENTORY -------- Targeting Computer Improved Targeting Computer Improved Targeting Computer Improved Targeting Computer Hardened Light Armor Plating Hardened Light Armor Plating Hardened Light Armor Plating Particle Gun Mini Grenade Launcher Mini Grenade Launcher [Rating: 12] Favorites ----------- Power Ion Engine Engine Ion Engine Propulsion Light Treads Treads Light Treads Leg Aluminum Leg Utility Medium Storage Unit Device Heat Sink Storage Medium Storage Unit Processor Improved Targeting Computer Protection Hardened Light Armor Plating Weapon Particle Gun Energy Gun Particle Gun Energy Cannon Subdweller Beam Cannon Ballistic Gun Assault Rifle Launcher Mini Grenade Launcher Build | -11 -10 -10 -10 ------- Run | Yrd Mat Min Sub Slots Evolved . | . . . . Power . | . . . . Propulsion . | . . . . Utility . | . . . . Weapon . | . . . . Parts Attached 18 | . 14 1 3 Power 2 | . 1 1 . Engine 2 | . 1 1 . Core . | . . . . Reactor . | . . . . Propulsion 3 | . 3 . . Treads 3 | . 3 . . Leg . | . . . . Wheel . | . . . . Hover . | . . . . Flight . | . . . . Utility 5 | . 4 . 1 Device 2 | . 1 . 1 Storage 1 | . 1 . . Processor 1 | . 1 . . Hackware . | . . . . Protection 1 | . 1 . . Artifact . | . . . . Weapon 8 | . 6 . 2 Energy Gun 3 | . 3 . . Energy Cannon 1 | . . . 1 Ballistic Gun 2 | . 1 . 1 Ballistic Cannon . | . . . . Launcher 2 | . 2 . . Special Weapon . | . . . . Impact Weapon . | . . . . Slashing Weapon . | . . . . Piercing Weapon . | . . . . Special Melee Weapon . | . . . . Unidentified Prototypes . | . . . . Parts Lost 7 | . . 1 6 Power 2 | . . 1 1 Propulsion 2 | . . . 2 Utility . | . . . . Weapon 3 | . . . 3 Highest Loss Streak 4 | . . 1 4 To Critical Strikes . | . . . . Average Backups 9 | . 8 10 10 Power . | . . . . Propulsion . | . . . . Utility 5 | . 4 7 6 Weapon 2 | . 2 3 3 Tool/Special . | . . . . Unused Backups 18 | . 9 . 9 Power 1 | . 1 . . Propulsion 4 | . 4 . . Utility 7 | . 1 . 6 Weapon 5 | . 2 . 3 Tool/Special 1 | . 1 . . Average Slot Usage (%) 95 | . 97 98 91 Engine 13 | . 14 12 14 Treads 22 | . 22 28 20 Leg 2 | . 5 . . Device 10 | . 5 14 14 Storage 14 | . 14 14 14 Processor 1 | . 2 . . Protection 1 | . 2 . . Energy Gun 15 | . 22 27 1 Energy Cannon 4 | . . . 12 Ballistic Gun 2 | . 5 . . Launcher 5 | . . . 13 Peak Build Rating 12 | . 11 10 12 Average Rating 9 | . 9 9 10 On Entrance 8 | 6 6 10 10 Avg Prop Armor Cover (%) . | . . . . Naked Turns . | . . . . Heaviest Build 23 | 14 22 22 23 Greatest Support 40 | 20 40 40 40 Greatest Overweight (x) 1 | . . . 1 Average Overweight (x) . | . . . . Largest Inventory Capacity 10 | . 10 10 10 Average Capacity 9 | . 8 10 10 Most Carried 10 | . 10 10 10 Average Carried 9 | . 8 10 9 Final Capacity 10 | 8 10 10 10 Final Carried 10 | 6 10 10 9 Class Distribution -------------------- 65% | Mutant 34% | Scavenger-Mutant Dominant Class ---------------- Mutant | -10/Materials Mutant | -10/Mines Scavenger-Mutant | -10/Subcaves Resources | -11 -10 -10 -10 ----------- Run | Yrd Mat Min Sub Matter Collected 564 | 200 174 13 177 Remotely . | . . . . Salvage Created 927 | . 597 75 255 Parts 46 | . 26 1 19 Haulers Intercepted 1 | . 1 . . Recyclers Shooed 1 | . 1 . . Parts Field Recycled . | . . . . Retrieved Matter . | . . . . Parts Self-Destructed 2 | . . . 2 Prevented . | . . . . Parts Restored . | . . . . Kills | -11 -10 -10 -10 ------- Run | Yrd Mat Min Sub Combat Hostiles Destroyed 21 | . 10 1 10 Melee 1 | . . 1 . Guns 5 | . 5 . . Cannons 2 | . . . 2 AOE 12 | . 5 . 7 Classes Destroyed 8 | . 4 1 3 Tunneler 1 | . . 1 . Hauler 1 | . 1 . . Recycler 2 | . 2 . . Turret 1 | . . . 1 Watcher 1 | . 1 . . Swarmer 4 | . . . 4 Grunt 12 | . 10 . 2 Subdweller 6 | . . . 6 Best Kill Streak 6 | . 5 1 6 Combat Bots Only 5 | . 5 1 5 Max Kills in Single Turn 5 | . 5 1 3 Gunslinging . | . . . . Exploded 5 | . 5 . 2 Melee 1 | . . 1 . Uniques/NPCs Destroyed 1 | . . 1 . YI-UF0 (-10/Mines) Combat | -11 -10 -10 -10 -------- Run | Yrd Mat Min Sub Hostile Shots Fired 64 | . 27 2 35 Missed 22 | . 10 . 12 Hits 42 | . 17 2 23 Projectile 42 | . 17 2 23 AOE 3 | . . 3 . Damage Taken 940 | . 201 114 625 Core 260 | . 21 . 239 Absorbed by Shields . | . . . . Core Remaining (%) 100 | 100 . . . Volleys Fired 48 | . 26 1 21 Largest 2 | . 2 1 2 Hottest 130 | . 130 30 110 Shots Fired 66 | . 41 1 24 Gun 39 | . 39 . . Cannon 3 | . . . 3 Launcher 24 | . 2 1 21 Special . | . . . . Kinetic 6 | . 6 . . Thermal 19 | . 16 . 3 Explosive 24 | . 2 1 21 Electromagnetic 17 | . 17 . . Robot Hit Streak 11 | . 6 . 11 Robot Miss Streak 3 | . 3 . 3 Penetration Max . | . . . . Secondary Targets . | . . . . Shots Hit Robots 34 | . 23 . 11 Core Hits 42 | . 21 1 20 Critical Kills 1 | . . . 1 Critical Parts Destroyed . | . . . . Critical Strikes 1 | . . . 1 Meltdown 1 | . . . 1 Melee Attacks . | . . . . Impact . | . . . . Slashing . | . . . . Piercing . | . . . . Sneak Attacks . | . . . . Combat Hostiles . | . . . . Follow-up Attacks . | . . . . Damage Inflicted 1690 | . 667 58 965 Guns 336 | . 336 . . Cannons 83 | . . . 83 Explosions 1249 | . 324 43 882 Melee . | . . . . Ramming 22 | . 7 15 . Kinetic 22 | . 22 . . Thermal 231 | . 148 . 83 Explosive 1249 | . 324 43 882 Electromagnetic 166 | . 166 . . Impact . | . . . . Slashing . | . . . . Piercing . | . . . . Highest Corruption . | . . . . Average Corruption . | . . . . Corruption Purged . | . . . . Corruption Blocked . | . . . . Overload Shots . | . . . . Overflow Damage 50 | . . . 50 Projectiles . | . . . . Explosions 50 | . . . 50 Melee . | . . . . Knockbacks . | . . . . Impact . | . . . . Kinetic . | . . . . Secondary . | . . . . Self-Inflicted Damage 306 | . . . 306 Shots 7 | . . . 7 Rammed 3 | . 1 2 . Targets Rammed 4 | . 1 3 . Kicked . | . . . . Crushed 1 | . . 1 . Highest Temperature 426 | . 426 . . Average Temperature 137 | . 137 . . Received Heat Transfer 204 | . 114 . 90 Effects 5 | . 5 . . Shutdowns 1 | . 1 . . Damage (major) 4 | . 4 . . Siege Activations . | . . . . Martial Activations . | . . . . Shielding Activations . | . . . . Robots Disrupted 1 | . 1 . . Combat Hostiles 1 | . 1 . . Robots Corrupted . | . . . . Combat Hostiles . | . . . . Parts Fried 1 | . 1 . . Impact Corruptions . | . . . . Robots Melted 1 | . . . 1 Combat Hostiles 1 | . . . 1 Parts Melted 3 | . 2 . 1 Heat Transferred 444 | . 333 . 111 Parts Sabotaged . | . . . . Parts Stolen . | . . . . Parts Stripped . | . . . . Power Chain Reactions . | . . . . Alert | -11 -10 -10 -10 ------- Run | Yrd Mat Min Sub Maximum Alert Level . | . . . . Low Security (%) 100 | . 100 100 . Level 1 . | . . . . Level 2 . | . . . . Level 3 . | . . . . Level 4 . | . . . . Level 5 . | . . . . High Security . | . . . . Max Security . | . . . . Peak Influence 171 | . 171 7 . Initial . | . . . . Average 55 | . 69 . . Influence Increases 560 | . 330 7 223 Destroy 0b10 Robot/C 320 | . 200 . 120 Destroy 0b10 Robot/NC 25 | . 20 5 . Destroy Leader 44 | . 44 . . Allied During Kill 13 | . . . 13 Successful Hack 35 | . 35 . . Disable Machine 15 | . 15 . . Destroy Structure 18 | . 16 2 . Lose Combat Pursuer 90 | . . . 90 Influence Decreases 560 | . 330 7 223 Time Decay 520 | . 330 7 183 Lost Part 20 | . . . 20 Lost Ally 20 | . . . 20 Squads Dispatched 2 | . 2 . . Investigation 2 | . 2 . . Extermination . | . . . . Reinforcement . | . . . . Assault . | . . . . Garrison . | . . . . Intercept . | . . . . Searches Triggered . | . . . . Construction Impeded . | . . . . Haulers Reinforced . | . . . . Active Scanning Responses . | . . . . Cargo Convoy Interrupts . | . . . . Stealth | -11 -10 -10 -10 --------- Run | Yrd Mat Min Sub Distress Signals 1 | . 1 . . Communications Jammed . | . . . . Distress Signals . | . . . . Times Spotted 30 | . 14 1 15 Peak Tracking Total 6 | . 6 1 3 Tactical Retreats 2 | . . . 2 Traps | -11 -10 -10 -10 ------- Run | Yrd Mat Min Sub Traps Triggered 1 | . 1 . . Indirectly . | . . . . Trap Hack Attempts . | . . . . Triggered . | . . . . Disarmed . | . . . . Reprogrammed . | . . . . Reused . | . . . . Traps Extracted . | . . . . Installed . | . . . . Triggered . | . . . . Machines | -11 -10 -10 -10 ---------- Run | Yrd Mat Min Sub Machines Disabled 4 | . 1 . 3 Max in Single Turn 3 | . 1 . 3 Machines Repaired . | . . . . Machines Dismantled . | . . . . Machines Sabotaged . | . . . . Overloaded Fab Kills . | . . . . Hacking | -11 -10 -10 -10 --------- Run | Yrd Mat Min Sub Machines Accessed 8 | . 8 . . Terminals 8 | . 8 . . Fabricators . | . . . . Repair Stations . | . . . . Recycling Units . | . . . . Scanalyzers . | . . . . Garrison Access . | . . . . Total Hacks 24 | . 24 . . Successful 11 | . 11 . . Failed 13 | . 13 . . Catastrophic 2 | . 2 . . Database Lockouts . | . . . . Manual 21 | . 21 . . Terminals 24 | . 24 . . Fabricators . | . . . . Repair Stations . | . . . . Recycling Units . | . . . . Scanalyzers . | . . . . Garrison Access . | . . . . Terminal Hacks 6 | . 6 . . Robot Analysis 1 | . 1 . . Terminal Index 1 | . 1 . . Alert Level 2 | . 2 . . Locate Traps 1 | . 1 . . Zone Layout 1 | . 1 . . Fabricator Hacks . | . . . . Repair Station Hacks . | . . . . Recycling Unit Hacks . | . . . . Scanalyzer . | . . . . Garrison Access Hacks . | . . . . Unauthorized Hacks 5 | . 5 . . Terminals 5 | . 5 . . Skim 5 | . 5 . . Fabricators . | . . . . Repair Stations . | . . . . Recycling Units . | . . . . Scanalyzers . | . . . . Garrison Access . | . . . . Data Cores Recovered . | . . . . Used . | . . . . Hacking Detections 8 | . 8 . . Full Trace Events 1 | . 1 . . Feedback Events . | . . . . Feedback Blocked . | . . . . Robot Schematics Acquired . | . . . . Robots Built . | . . . . Authchips . | . . . . Time . | . . . . Total Robot Build Rating . | . . . . Part Schematics Acquired . | . . . . Parts Built . | . . . . Authchips . | . . . . Time . | . . . . Total Part Build Rating . | . . . . Part Studies Acquired . | . . . . Parts Repaired . | . . . . Time . | . . . . Parts Recycled . | . . . . Recycled Matter . | . . . . Retrieved Matter . | . . . . Retrieved Components . | . . . . Parts Scanalyzed . | . . . . Part Schematics Acquired . | . . . . Parts Damaged . | . . . . Bothacking | -11 -10 -10 -10 ------------ Run | Yrd Mat Min Sub Used RIF Installer . | . . . . Robots Hacked . | . . . . Non-combat . | . . . . Combat . | . . . . Robot Hacks Applied . | . . . . Relay Couplers Released . | . . . . Fabnet Peak Effective % . | . . . . Robots Rewired . | . . . . Allies Hacked . | . . . . Hacks Repelled . | . . . . Allies | -11 -10 -10 -10 -------- Run | Yrd Mat Min Sub Total Allies 3 | . . 3 . Largest Group 3 | . . 3 3 Highest-Rated Group 40 | . . 40 40 Highest-Rated Ally 16 | . . 16 16 Total Orders . | . . . . Ally Attacks 17 | . . 3 14 Total Damage 179 | . . 12 167 Kills 1 | . . . 1 Allies Corrupted . | . . . . Allies Melted . | . . . . Intel | -11 -10 -10 -10 ------- Run | Yrd Mat Min Sub Active Infowar (turns) . | . . . . Robot Analysis Total 1 | . 1 . . Derelict Logs Recovered . | . . . . Drone Launches . | . . . . Drone Recoveries . | . . . . Exploration | -11 -10 -10 -10 ------------- Run | Yrd Mat Min Sub Turns Passed 1723 | . 843 221 659 Spaces Moved 828 | 1 387 131 309 Core . | . . . . Treads 730 | . 290 131 309 Legs 98 | 1 97 . . Wheels . | . . . . Hover . | . . . . Flight . | . . . . Fastest Speed 120 | 120 120 160 160 Average Speed 167 | 120 149 160 193 Slowest Speed 240 | 120 160 160 240 Overloaded Moves . | . . . . Propulsion Burnouts . | . . . . Robots Hopped . | . . . . Potential Cave-ins . | . . . . Cave-ins Triggered . | . . . . Exploration Rate (%) 30 | 2 61 35 25 Regions Visited 3 Branch Regions 2 Pre-discovered Areas . | . . . . Known Exits Taken 2 | . 1 1 . Unknown Exits Taken 1 | 1 . . . Scrap Searched . | . . . . Spaces Dug . | . . . . Terrain Destroyed 167 | . 20 6 141 Melee . | . . . . Projectile . | . . . . AOE 167 | . 20 6 141 Terrain Rammed . | . . . . Walls Destroyed . | . . . . Machines Disabled . | . . . . Actions | -11 -10 -10 -10 --------- Run | Yrd Mat Min Sub Total 1095 | . 608 139 348 Wait 168 | . 159 3 6 Move 825 | . 386 130 309 Hop . | . . . . Pick Up 14 | . 12 . 2 Fast Attach 3 | . 1 1 1 Attach 3 | . 2 . 1 Detach . | . . . . Swap 17 | . 11 1 5 Drop 13 | . 10 . 3 Fire 48 | . 26 1 21 Melee . | . . . . Ram . | . . . . Kick . | . . . . Crush 4 | . 1 3 . Escape Stasis . | . . . . Rewire . | . . . . Trap . | . . . . Miscellaneous . | . . . . Route ------- -11/Scrapyard -10/Materials (discovered 5 exits: *Mat x3 / *Min / Sub) -10/Mines (discovered 2 exits: *Mat / *Sub) -10/Subcaves (discovered 1 exit: [*Rec]) History --------- Turn | Location | Event 1 | -11/Scrapyard | Discovered new exit (range 0) 1 | -11/Scrapyard | Entered Materials 246 | -10/Materials | Discovered new exit (range 4) 302 | -10/Materials | Build established: Mutant 583 | -10/Materials | Learned 4 Subcaves zone layouts 630 | -10/Materials | Learned 2 Mines zone layouts 669 | -10/Materials | Identified exit to Subcaves 669 | -10/Materials | Identified exit to Materials 696 | -10/Materials | Identified exit to Mines 711 | -10/Materials | Loaded intel: 17 trap records 718 | -10/Materials | Learned Storage trap positions 728 | -10/Materials | Learned Storage emergency access door positions 781 | -10/Materials | Learned Storage non-interactive machine intel 844 | -10/Materials | Entered Mines 845 | -10/Mines | YI-UF0 nonchalantly dropped a Grenade Launcher on the ground 898 | -10/Mines | Assisted by bots powering up and referring to "LRC-V3" 976 | -10/Mines | Destroyed YI-UF0 1065 | -10/Mines | Entered Subcaves 1065 | -10/Subcaves | Accompanied by 3 allies 1066 | -10/Subcaves | Approached by a straggling Scientist 1098 | -10/Subcaves | Ambushed by Subdweller buried in earth 1103 | -10/Subcaves | Discovered new exit (range 12) 1167 | -10/Subcaves | Shifting Twisted Machinery released Sub. Optics 1172 | -10/Subcaves | Shifting Twisted Machinery released Mak. Shrapnel Gun 1273 | -10/Subcaves | A swath of the cavern ceiling suddenly collapsed 1323 | -10/Subcaves | Ambushed by Subdwellers from Twisted Machinery 1365 | -10/Subcaves | Shifting Twisted Machinery released Sub. Power Source 1367 | -10/Subcaves | Shifting Twisted Machinery released Mak. Laser 1416 | -10/Subcaves | Build established: Scavenger-Mutant 1607 | -10/Subcaves | Shifting Twisted Machinery released Flamer 1646 | -10/Subcaves | Shifting Twisted Machinery released Mak. Light Armor Plating 1719 | -10/Subcaves | Core integrity fell below 50% 1722 | -10/Subcaves | Core integrity fell below 20% 1724 | -10/Subcaves | Destroyed self with Mini Grenade Launcher Last Messages --------------- 01517_ The unstable cave ceiling collapses. GM-KMI(c): "I think it's somewhere north of here" 01529_ Subatomizers dissect the Sub. Laser. 01543_ Subatomizers dissect the Sub. Laser, destroying it. 01548_ The unstable cave ceiling collapses. GM-KMI(c): "I think it's somewhere north of here" 01579_ Dropped Heat Sink. Flamer falls loose from the Twisted Machinery. GM-KMI(c): "I think it's somewhere north of here" 01626_ Dropped Targeting Computer. 01627_ Acquired Flamer. Mak. Light Armor Plating falls loose from the Twisted Machinery. GM-KMI(c): "I think it's somewhere north of here" 01715_ Sub. Beam Cannon destroyed. 01715_ Destroyed Sub. Beam Cannon. 01717_ Lgt. Treads destroyed. 01717_ Destroyed Lgt. Treads. 01722_ Mni. Grenade Launcher destroyed. 01724_ Lgt. Ion Engine destroyed. 01724_ 9B-7NY(R) destroyed. Map ----- +----------------------------------------------------+ | #???????????????????????????????????????????????? | | #???????????????????????????????????????????????? | | #???????????????????????????????????????????????? | | ##???????????????????????????????????????????????? | | #????????????????????????????????????????????????? | | #????????????????????????????????????????????????? | | ?????????????????????????????????????????????????? | | ?????????????????????????????????????????????????? | | ?????????????????????????????????????????????????? | | ?????????????????????????????????????????????????? | | ?????????????????????????????????????????????????? | | ?????????????????????????????????????????????????? | | ?????????????????????????????????????????????????? | | ??????????????????????????????????##?????????????? | | ????????????????????????????????? ##????????????? | | ???????????????????????????????? #????????????? | | #?##????###????????????????????# #????????????? | | ##""##?# #???????????????????# #????????????? | | """" ## #??????????????????# #?????????????? | | """" #?????????????????# #??????????????? | | """"" #####?????######## ###????????????? | | """ " ### ####?## # #????????????? | | * """ #?# ##"### c #????????????????? | | ###?# ##???????????????? | | ##???#" ### ## #???????????????? | | ##????#" "### @ #???????????????? | | #######" ""# # ] #???????????????? | | ## ## ## # ##???????????????? | | " " " " ## "#<$ R ###????????????????? | | "" ##?" ""#<$$ #??????????????????? | | "" # ### "#?#""""##<< #??????????????????? | | ! ####?# "##?#### #### #??????????????????? | | #???# ""#??????# ? # #??????????????????? | | #???# ""#??????? #### ? ##??????????????????? | | ???## "#????????#??# ? ???????????????????? | | ??? "#??????????? ? ##??????????????????? | | ?? "#???????????# ? ???????????????????? | | ?? !????????????# ? ???????????????????? | | #? ?????????????"?"" ???????????????????? | | ? ?????????????"?"" ???????????????????? | | ??????????????????????????????????????? | | ?????????????????????????????????????????? | | ????????????????????????????????????????? | | ???????????????????????????????????????? | | ### ????????????????????????????????????????? | | ??????????????????????????????????????????????? | | ###??????????????????????????????????????????????? | | ?????????????????????????????????????????????????? | | ?????????????????????????????????????????????????? | | ?????????????????????????????????????????????????? | +----------------------------------------------------+ Best States ------------- Heat Dissipation 39 Energy Generation 10 Energy Capacity 250 Matter Stores 300 Matter Capacity 300 Sight Range 16 Terrain Scan Density 10 Armor Coverage 150 Evasion (%) 55 Targeting Accuracy 6 Recoil Reduction 2 Item Schematics ----------------- None Robot Schematics ------------------ None Fabricated ------------ Nothing Repaired ---------- Nothing Studied --------- None Alien Tech Used ----------------- None Achievements -------------- None Challenges ------------ None Game ------ Seed DoorReinforcedTerminator Manual? 0 Play Time 00:10:46 Cumulative 1332.8 hours Start 2026.07.04 @ 11:44:48 End 2026.07.04 @ 11:54:30 Sessions 1 Manual Loads 0 Difficulty Rogue Special Mode None Game No. 1633 Rogue 1349 Adventurer 124 Explorer 160 Win Type - Total 67 Types 52/0/9/4/1/0/0/1/0/0 Lore% 93 Gallery% 84 Achievement% 72 Wizard Run 0 Options --------- Layout 0 ASCII 0 Keyboard 1 Movement Numpad Keybinds 0 Fullscreen 2 Font 18/X11 Map View 76x50 Zoom Use 5% Tactical HUD 1 Map Filters NONE Filters NONE Steam 1 RUN: a56ac4fe-d40d-4233-a145-da2b651b79c0